Cogmind - Beta 14 @@@ ROGUE MODE // 2025.03.13 @ 15:12:47 Player: celerysam Result: Destroyed by S-10 Pest with Light Assault Rifle Performance ------------- Evolutions (0) 0 Regions Visited (4) 800 Robots Destroyed (6) 30 Value Destroyed (110) 110 Prototype IDs (23) 460 Alien Tech Used (0) 0 Bonus (300) 300 TOTAL SCORE: 1700 Bonus ------- Aligned with FarCom 300 Cogmind --------- Core Integrity 0/250 Matter 289/300 Energy 100/100 System Corruption 1% Temperature Cool (0) Movement Rolling (100) Location -9/Mines Parts ------- > --- POWER (1) -------- (None) > --- PROPULSION (2) --- Compact Wheel Compact Wheel > --- UTILITY (2) ------ Large Storage Unit > --- WEAPON (2) ------- Light Assault Rifle Grenade Launcher > --- INVENTORY (15) --- Light Treads Light Treads Compact Wheel Compact Wheel Light Assault Rifle XL Autogun Array Peak State ------------ > --- POWER ------------ (None) > --- PROPULSION ------- Compact Wheel Compact Wheel > --- UTILITY ---------- Large Storage Unit > --- WEAPON ----------- EM Pulse Gun Light Assault Rifle > --- INVENTORY -------- Light Treads Light Treads Compact Wheel Compact Wheel XL Autogun Array Grenade Launcher [Rating: 9] Favorites ----------- Power Ion Engine Engine Ion Engine Propulsion Compact Wheel Leg Aluminum Leg Wheel Compact Wheel Utility Large Storage Unit Device Terrain Scanner Storage Large Storage Unit Weapon EM Pulse Gun Energy Gun EM Pulse Gun Ballistic Gun Light Assault Rifle Launcher Grenade Launcher Build | -11 -10 -10 -10 -9 ------- Run | Yrd Mat Min Exi Min Slots Evolved . | . . . . . Power . | . . . . . Propulsion . | . . . . . Utility . | . . . . . Weapon . | . . . . . Parts Attached 19 | 6 7 2 3 1 Power 3 | 1 1 1 . . Engine 3 | 1 1 1 . . Core . | . . . . . Reactor . | . . . . . Propulsion 6 | 2 2 1 1 . Treads . | . . . . . Leg 2 | . 2 . . . Wheel 4 | 2 . 1 1 . Hover . | . . . . . Flight . | . . . . . Utility 3 | 1 2 . . . Device 1 | . 1 . . . Storage 2 | 1 1 . . . Processor . | . . . . . Hackware . | . . . . . Protection . | . . . . . Artifact . | . . . . . Weapon 7 | 2 2 . 2 1 Energy Gun 4 | 2 1 . 1 . Energy Cannon . | . . . . . Ballistic Gun 2 | . 1 . 1 . Ballistic Cannon . | . . . . . Launcher 1 | . . . . 1 Special Weapon . | . . . . . Impact Weapon . | . . . . . Slashing Weapon . | . . . . . Piercing Weapon . | . . . . . Special Melee Weapon . | . . . . . Unidentified Prototypes . | . . . . . Parts Lost 9 | . 3 5 . 1 Power 2 | . 1 1 . . Propulsion 3 | . 1 2 . . Utility 1 | . . 1 . . Weapon 3 | . 1 1 . 1 Highest Loss Streak 5 | . 2 5 . 1 To Critical Strikes . | . . . . . Average Slot Usage (%) 78 | . 88 76 70 69 Engine 7 | . 14 14 . . Leg 6 | . 10 22 . . Wheel 18 | . 11 . 28 28 Device 4 | . 8 14 . . Storage 14 | . 14 14 14 14 Energy Gun 14 | . 19 . 13 7 Ballistic Gun 11 | . 8 11 13 14 Peak Build Rating 9 | 6 8 6 9 9 Average Rating 6 | 3 6 5 6 8 On Entrance 4 | . 6 6 2 9 Naked Turns . | . . . . . Heaviest Build 30 | 14 30 28 23 24 Greatest Support 32 | 26 26 20 32 32 Greatest Overweight (x) 2 | . 1 2 . . Average Overweight (x) . | . . 1 . . Largest Inventory Capacity 15 | 8 15 15 15 15 Average Capacity 12 | 6 9 15 15 15 Most Carried 10 | 6 10 9 9 9 Average Carried 7 | 3 8 8 6 8 Final Capacity 15 | 8 15 15 15 15 Final Carried 10 | 6 10 8 9 9 Class Distribution -------------------- 100% | Mutant Dominant Class ---------------- Mutant | -10/Materials Mutant | -10/Mines Mutant | -10/Exiles Mutant | -9/Mines Resources | -11 -10 -10 -10 -9 ----------- Run | Yrd Mat Min Exi Min Matter Collected 374 | 235 105 . . 34 Remotely . | . . . . . Salvage Created 205 | . 157 . . 48 Parts 11 | . 6 . . 5 Haulers Intercepted 1 | . 1 . . . Recyclers Shooed . | . . . . . Parts Field Recycled . | . . . . . Retrieved Matter . | . . . . . Parts Self-Destructed . | . . . . . Prevented . | . . . . . Kills | -11 -10 -10 -10 -9 ------- Run | Yrd Mat Min Exi Min Combat Hostiles Destroyed 5 | . 2 . . 3 Guns 4 | . 1 . . 3 AOE 1 | . 1 . . . Classes Destroyed 3 | . 2 . . 1 Hauler 1 | . 1 . . . Swarmer 3 | . . . . 3 Grunt 2 | . 2 . . . Best Kill Streak 3 | . 2 . . 3 Combat Bots Only 3 | . 2 . . 3 Max Kills in Single Turn 2 | . 1 . . 2 Gunslinging 1 | . . . . 1 Exploded 1 | . 1 . . . Melee . | . . . . . Uniques/NPCs Destroyed . | . . . . . Combat | -11 -10 -10 -10 -9 -------- Run | Yrd Mat Min Exi Min Hostile Shots Fired 122 | . 43 44 . 35 Missed 36 | . 14 14 . 8 Damage Taken 1044 | . 380 447 . 217 Core 251 | . 71 123 . 57 Absorbed by Shields . | . . . . . Core Remaining (%) 100 | 100 . . . . Volleys Fired 24 | . 14 . . 10 Largest 2 | . 2 . . 2 Hottest 80 | . 80 . . 60 Shots Fired 46 | . 28 . . 18 Gun 46 | . 28 . . 18 Cannon . | . . . . . Launcher . | . . . . . Special . | . . . . . Kinetic 15 | . 5 . . 10 Thermal . | . . . . . Explosive . | . . . . . Electromagnetic 31 | . 23 . . 8 Robot Hit Streak 10 | . 10 . . 4 Robot Miss Streak 5 | . 5 . . 3 Penetration Max . | . . . . . Secondary Targets 1 | . . . . 1 Max Gunslinging Chain 1 | . . . . 1 Shots Hit Robots 27 | . 17 . . 10 Core Hits 9 | . 6 . . 3 Critical Kills . | . . . . . Critical Parts Destroyed . | . . . . . Critical Strikes . | . . . . . Melee Attacks . | . . . . . Impact . | . . . . . Slashing . | . . . . . Piercing . | . . . . . Sneak Attacks . | . . . . . Combat Hostiles . | . . . . . Follow-up Attacks . | . . . . . Damage Inflicted 389 | . 287 . . 102 Guns 316 | . 214 . . 102 Cannons . | . . . . . Explosions 73 | . 73 . . . Melee . | . . . . . Ramming . | . . . . . Kinetic 84 | . 28 . . 56 Thermal 73 | . 73 . . . Explosive . | . . . . . Electromagnetic 232 | . 186 . . 46 Impact . | . . . . . Slashing . | . . . . . Piercing . | . . . . . Highest Corruption 1 | . . 1 1 1 Average Corruption 1 | . . 1 1 1 Corruption Purged . | . . . . . Corruption Blocked . | . . . . . Effects 2 | . . . 1 1 Message Errors 2 | . . . 1 1 Overload Shots . | . . . . . Overflow Damage 7 | . 7 . . . Projectiles . | . . . . . Explosions 7 | . 7 . . . Melee . | . . . . . Knockbacks . | . . . . . Impact . | . . . . . Kinetic . | . . . . . Secondary . | . . . . . Self-Inflicted Damage 37 | . 37 . . . Shots 1 | . 1 . . . Rammed . | . . . . . Targets Rammed . | . . . . . Kicked . | . . . . . Crushed . | . . . . . Highest Temperature 148 | . 148 2 . 20 Average Temperature 40 | . 56 2 . 8 Received Heat Transfer 326 | . 186 140 . . Siege Activations . | . . . . . Robots Corrupted . | . . . . . Combat Hostiles . | . . . . . Parts Fried 2 | . 2 . . . Impact Corruptions . | . . . . . Robots Melted . | . . . . . Combat Hostiles . | . . . . . Parts Melted . | . . . . . Heat Transferred 100 | . 100 . . . Parts Sabotaged . | . . . . . Parts Stolen . | . . . . . Parts Stripped . | . . . . . Power Chain Reactions 1 | . 1 . . . Alert | -11 -10 -10 -10 -9 ------- Run | Yrd Mat Min Exi Min Peak Influence 127 | . 127 15 . 60 Initial . | . . . . . Average 59 | . 80 6 . 34 Maximum Alert Level . | . . . . . Low Security (%) 100 | 100 100 100 . 100 Level 1 . | . . . . . Level 2 . | . . . . . Level 3 . | . . . . . Level 4 . | . . . . . Level 5 . | . . . . . High Security . | . . . . . Max Security . | . . . . . Squads Dispatched 1 | . 1 . . . Investigation . | . . . . . Extermination . | . . . . . Reinforcement 1 | . 1 . . . Assault . | . . . . . Garrison . | . . . . . Intercept . | . . . . . Searches Triggered . | . . . . . Construction Impeded . | . . . . . Haulers Reinforced . | . . . . . Active Scanning Responses . | . . . . . Cargo Convoy Interrupts . | . . . . . Stealth | -11 -10 -10 -10 -9 --------- Run | Yrd Mat Min Exi Min Distress Signals 2 | . 2 . . . Communications Jammed . | . . . . . Distress Signals . | . . . . . Times Spotted 32 | . 9 16 . 7 Peak Tracking Total 16 | . 4 16 . 3 Tactical Retreats 2 | . 1 1 . . Traps | -11 -10 -10 -10 -9 ------- Run | Yrd Mat Min Exi Min Traps Triggered . | . . . . . Indirectly . | . . . . . Trap Hack Attempts . | . . . . . Triggered . | . . . . . Disarmed . | . . . . . Reprogrammed . | . . . . . Reused . | . . . . . Traps Extracted . | . . . . . Installed . | . . . . . Triggered . | . . . . . Machines | -11 -10 -10 -10 -9 ---------- Run | Yrd Mat Min Exi Min Machines Disabled 1 | . 1 . . . Max in Single Turn 1 | . 1 . . . Machines Repaired . | . . . . . Machines Dismantled . | . . . . . Machines Sabotaged . | . . . . . Overloaded Fab Kills . | . . . . . Hacking | -11 -10 -10 -10 -9 --------- Run | Yrd Mat Min Exi Min Machines Accessed 4 | . 1 . 3 . Terminals 1 | . 1 . . . Fabricators . | . . . . . Repair Stations . | . . . . . Recycling Units . | . . . . . Scanalyzers . | . . . . . Garrison Access . | . . . . . Total Hacks 6 | . 2 . 4 . Successful 5 | . 1 . 4 . Failed 1 | . 1 . . . Catastrophic 1 | . 1 . . . Database Lockouts . | . . . . . Manual 2 | . 1 . 1 . Terminals 2 | . 2 . . . Fabricators . | . . . . . Repair Stations . | . . . . . Recycling Units . | . . . . . Scanalyzers . | . . . . . Garrison Access . | . . . . . Terminal Hacks 4 | . . . 4 . Record 3 | . . . 3 . Derelict Proto ID Bank 1 | . . . 1 . Fabricator Hacks . | . . . . . Repair Station Hacks . | . . . . . Recycling Unit Hacks . | . . . . . Scanalyzer . | . . . . . Garrison Access Hacks . | . . . . . Unauthorized Hacks 1 | . 1 . . . Terminals 1 | . 1 . . . Botnet 1 | . 1 . . . Fabricators . | . . . . . Repair Stations . | . . . . . Recycling Units . | . . . . . Scanalyzers . | . . . . . Garrison Access . | . . . . . Data Cores Recovered . | . . . . . Used . | . . . . . Hacking Detections 1 | . 1 . . . Full Trace Events . | . . . . . Feedback Events . | . . . . . Feedback Blocked . | . . . . . Robot Schematics Acquired . | . . . . . Robots Built . | . . . . . Authchips . | . . . . . Time . | . . . . . Total Robot Build Rating . | . . . . . Part Schematics Acquired . | . . . . . Parts Built . | . . . . . Authchips . | . . . . . Time . | . . . . . Total Part Build Rating . | . . . . . Parts Repaired . | . . . . . Time . | . . . . . Parts Recycled . | . . . . . Recycled Matter . | . . . . . Retrieved Matter . | . . . . . Retrieved Components . | . . . . . Parts Scanalyzed . | . . . . . Part Schematics Acquired . | . . . . . Parts Damaged . | . . . . . Bothacking | -11 -10 -10 -10 -9 ------------ Run | Yrd Mat Min Exi Min Used RIF Installer . | . . . . . Robots Hacked . | . . . . . Non-combat . | . . . . . Combat . | . . . . . Robot Hacks Applied . | . . . . . Relay Couplers Released . | . . . . . Fabnet Peak Effective % . | . . . . . Robots Rewired . | . . . . . Allies Hacked . | . . . . . Hacks Repelled . | . . . . . Allies | -11 -10 -10 -10 -9 -------- Run | Yrd Mat Min Exi Min Total Allies . | . . . . . Largest Group . | . . . . . Highest-Rated Group . | . . . . . Highest-Rated Ally . | . . . . . Total Orders . | . . . . . Ally Attacks . | . . . . . Total Damage . | . . . . . Kills . | . . . . . Allies Corrupted . | . . . . . Allies Melted . | . . . . . Intel | -11 -10 -10 -10 -9 ------- Run | Yrd Mat Min Exi Min Robot Analysis Total . | . . . . . Derelict Logs Recovered 2 | . . 1 . 1 Drone Launches . | . . . . . Drone Recoveries . | . . . . . Exploration | -11 -10 -10 -10 -9 ------------- Run | Yrd Mat Min Exi Min Turns Passed 949 | 61 413 54 342 79 Spaces Moved 774 | 52 302 30 339 51 Core 5 | 5 . . . . Treads . | . . . . . Legs 103 | . 80 23 . . Wheels 666 | 47 222 7 339 51 Hover . | . . . . . Flight . | . . . . . Fastest Speed 50 | 50 90 115 100 100 Average Speed 108 | 86 117 174 100 100 Slowest Speed 260 | 90 190 260 100 100 Overloaded Moves . | . . . . . Propulsion Burnouts . | . . . . . Robots Hopped . | . . . . . Cave-ins Triggered . | . . . . . Exploration Rate (%) 29 | 3 56 9 61 18 Regions Visited 4 Branch Regions 3 Pre-discovered Areas . | . . . . . Known Exits Taken . | . . . . . Unknown Exits Taken 4 | 1 1 1 1 . Scrap Searched . | . . . . . Spaces Dug . | . . . . . Terrain Destroyed 4 | . 4 . . . Melee . | . . . . . Projectile . | . . . . . AOE 4 | . 4 . . . Terrain Rammed . | . . . . . Walls Destroyed . | . . . . . Machines Disabled . | . . . . . Actions | -11 -10 -10 -10 -9 --------- Run | Yrd Mat Min Exi Min Total 838 | 67 335 31 342 63 Wait . | . . . . . Move 770 | 51 301 29 338 51 Hop . | . . . . . Pick Up 19 | 10 7 . 1 1 Fast Attach 4 | 2 2 . . . Attach 11 | 4 1 2 3 1 Detach . | . . . . . Swap 4 | . 4 . . . Drop 6 | . 6 . . . Fire 24 | . 14 . . 10 Melee . | . . . . . Ram . | . . . . . Kick . | . . . . . Crush . | . . . . . Escape Stasis . | . . . . . Rewire . | . . . . . Trap . | . . . . . Miscellaneous . | . . . . . Route ------- -11/Scrapyard -10/Materials (discovered 2 exits: [*Min x2]) -10/Mines -10/Exiles -9/Mines (discovered 1 exit: [*Mat]) History --------- Turn | Location | Event 2 | -11/Scrapyard | Met Revision 17 12 | -11/Scrapyard | Discovered new exit (range 15) 62 | -11/Scrapyard | Entered Materials 124 | -10/Materials | Discovered new exit (range 14) 160 | -10/Materials | Discovered new exit (range 9) 338 | -10/Materials | Build established: Mutant 475 | -10/Materials | Entered Mines 476 | -10/Mines | Assembled infested the area 518 | -10/Mines | Core integrity fell below 50% 524 | -10/Mines | Deemed a non-threat by the Exiles lab entrance 524 | -10/Mines | Discovered new exit (range 5) 529 | -10/Mines | Entered Exiles 556 | -10/Exiles | Met 8R-AWN 559 | -10/Exiles | Lost 5 parts (1p2n1u1w) 573 | -10/Exiles | Met EX-HEX 603 | -10/Exiles | Met EX-BIN 615 | -10/Exiles | Aligned with FarCom system 616 | -10/Exiles | Given EX-Vault access code 651 | -10/Exiles | Opened EX-Vault 719 | -10/Exiles | Warned to stay clear of 0b10 Research branches 772 | -10/Exiles | Found XL Autogun Array 824 | -10/Exiles | Met EX-DEC 862 | -10/Exiles | Discovered new exit (range 10) 871 | -10/Exiles | Left Exiles lab with XL Autogun Array 871 | -10/Exiles | Entered Mines 889 | -9/Mines | Core integrity fell below 20% 943 | -9/Mines | Learned Materials security intel 949 | -9/Mines | Discovered new exit (range 8) 950 | -9/Mines | Destroyed by S-10 Pest with Light Assault Rifle Last Messages --------------- 00902_ S-10 Pest destroyed. 00902_ Switching to secondary target: S-10 Pest. 00902_ S-10 Pest destroyed. 00905_ K-01 Serf cleans the Plasma Injector. 00906_ K-01 Serf collects debris. 00908_ K-01 Serf cleans the Plasma Injector. 00910_ K-01 Serf collects debris. 00910_ Destroyed Flight Unit. 00914_ K-01 Serf collects debris. 00915_ EM Pulse Gun destroyed. 00918_ S-10 Pest destroyed. 00918_ K-01 Serf collects debris. 00919_ Acquired 14 matter. 00921_ Acquired 20 matter. 00922_ K-01 Serf collects debris. 00934_ Acquired Lgt. Assault Rifle. 00936_ K-01 Serf collects debris. 00943_ Acquired derelict log, extracted data. Data stored: Materials security intel. 00949_ EXIT=FOUND Map ----- +----------------------------------------------------+ | | | | | | | | | | | ??????????????????????????????????????????????? | | ??????????????????????????????????????????????? | | ??????????????????????????????????###########?? | | ??????????????????????????????????# #?? | | ??????????????????????????????????# """ """ #?? | | ??????????????????????????????????# """ """ #?? | | ??????????????????????????????????# """ """ #?? | | ??????????????????????????????????# #?? | | ??????????????????????????????????# """ """ #?? | | ??????????????????????????????????# """ """ #?? | | ??????????????????????????????????# """ """ #?? | | ?????????????????????########?????# #?? | | ?????????????????????# ??#### """ #?? | | ?????????????????????? s